Cogmind - Beta 16 @@@ ROGUE MODE // 2025.12.21 @ 20:48:28 Player: PE-P51 Result: Self-destructed Performance ------------- Evolutions (5) 2500 Regions Visited (13) 2600 Robots Destroyed (167) 835 Value Destroyed (4409) 4409 Prototype IDs (37) 740 Alien Tech Used (0) 0 Bonus (1099) 1099 TOTAL SCORE: 12183 Bonus ------- High Alert Combat Kills 81 Follower Combat Kills 248 Entered DSFs 500 Aligned with FarCom 300 Friendly Fire -30 Cogmind --------- Core Integrity 563/1000 Matter 300/300 Energy 56/100 System Corruption 0% Temperature Cool (57) Movement Flying (35) Location -5/Factory Parts ------- > --- POWER (1) -------- (None) > --- PROPULSION (6) --- Improved Cesium-ion Thruster > --- UTILITY (8) ------ Advanced Signal Interpreter Graphene Brace Hacking Suite > --- WEAPON (2) ------- (None) > --- INVENTORY (5) ---- Light Fission Core Improved Sensor Array Cloak of Protection Authchip [R/Combat] Authchip [R/Combat] Peak State ------------ > --- POWER ------------ Backup Power VII > --- PROPULSION ------- VTOL Module Improved Cesium-ion Thruster Improved Cesium-ion Thruster > --- UTILITY ---------- Medium Storage Unit Advanced Weight Redist. System Improved Sensor Array Advanced Signal Interpreter Advanced Terrain Scan Processor Graphene Brace Hacking Suite System Shield > --- WEAPON ----------- Enhanced Nova Cannon Mini Grenade Launcher > --- INVENTORY -------- Light Fission Core Improved Cooling System Improved Sensor Array Cloak of Protection Authchip [R/Combat] Authchip [R/Combat] Authchip [R/Combat] Guided Plasma Cannon Enhanced Nova Cannon Scythe [Rating: 64] Favorites ----------- Power Light Nuclear Core Engine Heavy Ion Engine Power Core Light Nuclear Core Propulsion Light Treads Treads Light Treads Leg Aluminum Leg Wheel Wheel Flight Unit Improved Cesium-ion Thruster Utility High-capacity Storage Unit Device Improved Heat Sink Storage High-capacity Storage Unit Processor Improved Signal Interpreter Hackware Hacking Suite Protection Light Armor Plating Weapon Beam Cannon Energy Gun Precision Beam Rifle Energy Cannon Beam Cannon Ballistic Gun Hypervelocity Gauss Rifle Ballistic Cannon Assault Cannon Launcher Mini Grenade Launcher Special Weapon Remote Datajack Impact Weapon Mace Slashing Weapon Scythe Piercing Weapon Spear Build | -11 -10 -10 -9 -9 -9 -8 -8 -7 -7 -7 -6 -6 -5 ------- Run | Yrd Mat Min Mat Min Exi Min Mat Fac Was Fac Fac DSF Fac Slots Evolved 10 | . . . 2 . . . 2 2 . . 2 . 2 Power . | . . . . . . . . . . . . . . Propulsion 4 | . . . 1 . . . . 1 . . 1 . 1 Utility 6 | . . . 1 . . . 2 1 . . 1 . 1 Weapon . | . . . . . . . . . . . . . . Parts Attached 142 | . 13 7 29 2 . 3 23 32 . 19 4 4 6 Power 13 | . 1 1 4 . . . 2 4 . . 1 . . Engine 4 | . . . 3 . . . . 1 . . . . . Core 9 | . 1 1 1 . . . 2 3 . . 1 . . Reactor . | . . . . . . . . . . . . . . Propulsion 39 | . 4 3 12 1 . 1 5 10 . 3 . . . Treads 20 | . 3 . 10 1 . 1 5 . . . . . . Leg 1 | . 1 . . . . . . . . . . . . Wheel 5 | . . 3 2 . . . . . . . . . . Hover . | . . . . . . . . . . . . . . Flight 13 | . . . . . . . . 10 . 3 . . . Utility 51 | . 3 1 4 1 . 2 8 12 . 12 2 3 3 Device 32 | . 2 1 3 1 . 2 5 5 . 9 1 2 1 Storage 3 | . 1 . . . . . 1 . . 1 . . . Processor 8 | . . . . . . . 2 3 . 1 . 1 1 Hackware 7 | . . . . . . . . 4 . 1 1 . 1 Protection 1 | . . . 1 . . . . . . . . . . Artifact . | . . . . . . . . . . . . . . Weapon 39 | . 5 2 9 . . . 8 6 . 4 1 1 3 Energy Gun 6 | . . . . . . . 4 . . . . 1 1 Energy Cannon 18 | . 4 2 6 . . . 3 1 . . . . 2 Ballistic Gun 2 | . . . . . . . . . . 1 1 . . Ballistic Cannon 2 | . . . 2 . . . . . . . . . . Launcher 4 | . 1 . 1 . . . 1 . . 1 . . . Special Weapon 3 | . . . . . . . . 2 . 1 . . . Impact Weapon 1 | . . . . . . . . 1 . . . . . Slashing Weapon 2 | . . . . . . . . 1 . 1 . . . Piercing Weapon 1 | . . . . . . . . 1 . . . . . Special Melee Weapon . | . . . . . . . . . . . . . . Unidentified Prototypes 8 | . . 1 1 . . . 4 1 . 1 . . . Corrupted Parts 1 | . . . . . . . . 1 . . . . . System Corruption 9 | . . . . . . . . 9 . . . . . Parts Lost 44 | . 2 1 12 1 . 1 8 2 . 4 . 2 11 Power 5 | . . . 1 . . . 2 1 . . . . 1 Propulsion 14 | . 1 1 4 . . 1 1 . . 2 . 2 2 Utility 16 | . . . 4 1 . . 2 1 . 2 . . 6 Weapon 9 | . 1 . 3 . . . 3 . . . . . 2 Highest Loss Streak 9 | . 1 1 3 1 . 1 3 2 . 2 . 1 9 To Critical Strikes . | . . . . . . . . . . . . . . Average Backups 14 | . 8 17 19 20 19 18 18 4 4 6 8 9 9 Power 1 | . 1 3 2 3 3 3 2 . . . . . . Propulsion 3 | . . 2 7 8 6 4 4 . . . . . . Utility 2 | . . 2 1 2 3 3 4 . 1 3 4 7 6 Weapon 5 | . 5 10 7 6 6 7 7 3 3 1 2 2 2 Tool/Special . | . . . . . . . . . . . . . . Unused Backups 32 | . 5 2 7 1 2 . 4 4 . 4 . . 3 Power 5 | . . 1 2 . . . 1 1 . . . . . Propulsion 9 | . 3 1 3 1 . . . 1 . . . . . Utility 10 | . 1 . . . 1 . 2 1 . 2 . . 3 Weapon 8 | . 1 . 2 . 1 . 1 1 . 2 . . . Tool/Special . | . . . . . . . . . . . . . . Average Slot Usage (%) 94 | . 99 99 86 94 88 98 98 97 92 98 99 94 74 Engine 4 | . 6 . 6 11 11 11 2 2 . . . . . Core 5 | . 7 14 4 . . . 6 4 7 7 6 6 5 Treads 19 | . 18 20 29 33 33 32 27 . . . . . . Leg 1 | . 9 . . . . . . . . . . . . Wheel 1 | . . 7 3 . . . . . . . . . . Flight 7 | . . . . . . . . 29 30 29 33 30 13 Device 17 | . 13 14 10 17 11 21 28 16 15 20 20 20 16 Storage 8 | . 14 14 11 11 11 11 9 . . 3 6 6 4 Processor 4 | . . . . . . . 5 18 7 13 13 13 10 Hackware 2 | . . . . . . . . 8 15 6 5 6 9 Energy Cannon 10 | . 25 26 16 . . . 4 1 7 3 . . 1 Ballistic Cannon 5 | . . . 3 22 22 22 9 . . . . . . Special Weapon 1 | . . . . . . . . 6 7 4 . 2 . Peak Build Rating 64 | . 10 17 19 19 21 27 38 62 58 63 56 60 64 Average Rating 28 | . 8 10 14 18 19 26 35 55 58 54 54 52 55 On Entrance 29 | 6 6 10 11 18 18 21 27 26 58 58 46 55 46 Avg Prop Armor Cover (%) 8 | . 8 12 9 . . . 6 3 . . . . . Naked Turns . | . . . . . . . . . . . . . . Heaviest Build 63 | 12 52 52 61 60 59 60 63 49 21 23 28 28 30 Greatest Support 65 | 20 40 40 63 63 63 63 65 62 24 24 28 31 26 Greatest Overweight (x) 5 | . 1 5 5 . . . 1 2 . 1 . 1 1 Average Overweight (x) . | . . 3 . . . . . . . . . . . Largest Inventory Capacity 20 | . 20 20 20 20 20 20 20 20 5 10 10 10 10 Average Capacity 15 | . 16 20 20 20 20 20 20 5 5 7 10 10 9 Most Carried 20 | . 15 20 20 20 20 20 20 20 5 10 9 10 10 Average Carried 14 | . 8 17 19 20 19 19 19 5 5 7 8 9 9 Final Capacity 20 | 8 20 20 20 20 20 20 20 5 5 10 10 10 5 Final Carried 20 | 6 15 20 20 20 20 20 20 5 5 9 9 10 5 Class Distribution -------------------- 60% | Mutant 12% | Scavenger-Mutant 11% | Sprinter 7% | Scout 5% | Hacker-Sprinter Dominant Class ---------------- Mutant | -10/Materials Scavenger-Mutant | -10/Mines Mutant | -9/Materials Mutant | -9/Mines Mutant | -9/Exiles Mutant | -8/Mines Mutant | -8/Materials Sprinter | -7/Factory Hacker-Sprinter | -7/Waste Scout | -7/Factory Scout | -6/Factory Assassin | -6/DSF Hacker-Sprinter | -5/Factory Resources | -11 -10 -10 -9 -9 -9 -8 -8 -7 -7 -7 -6 -6 -5 ----------- Run | Yrd Mat Min Mat Min Exi Min Mat Fac Was Fac Fac DSF Fac Matter Collected 3069 | 188 155 127 417 95 . 152 698 470 . 399 121 116 131 Remotely 607 | . . . . . . . 607 . . . . . . Salvage Created 5862 | . 938 135 1462 236 . 154 1014 889 . 554 121 116 243 Parts 312 | . 38 8 79 9 . 4 64 54 . 44 3 3 6 Haulers Intercepted 18 | . 2 . 5 . . . 4 3 . 2 . 1 1 Recyclers Shooed 5 | . 1 . 2 . . . 2 . . . . . . Parts Field Recycled . | . . . . . . . . . . . . . . Retrieved Matter . | . . . . . . . . . . . . . . Parts Self-Destructed . | . . . . . . . . . . . . . . Prevented . | . . . . . . . . . . . . . . Parts Restored 1 | . . . . . . . . . . . 1 . . Broken 1 | . . . . . . . . . . . 1 . . Kills | -11 -10 -10 -9 -9 -9 -8 -8 -7 -7 -7 -6 -6 -5 ------- Run | Yrd Mat Min Mat Min Exi Min Mat Fac Was Fac Fac DSF Fac Combat Hostiles Destroyed 106 | . 20 11 25 4 . 3 21 9 . 12 . . 1 Melee 1 | . . . . . . . . 1 . . . . . Guns 6 | . 2 . . . . . 4 . . . . . . Cannons 76 | . 16 8 20 4 . 3 13 7 . 4 . . 1 AOE 18 | . 2 3 1 . . . 3 1 . 8 . . . Classes Destroyed 16 | . 6 2 4 . . . 3 1 . . . . . Worker 13 | . . 2 3 . . . 1 4 . 3 . . . Builder 6 | . . . 4 . . . 1 1 . . . . . Tunneler 3 | . . . 1 . . . . 1 . 1 . . . Hauler 18 | . 2 . 5 . . . 4 3 . 2 . 1 1 Recycler 11 | . 1 . 1 1 . 1 3 3 . . 1 . . Operator 6 | . 1 . 1 . . . 1 1 . 2 . . . Watcher 11 | . 1 . 2 . . . 2 2 . 1 . . 3 Swarmer 26 | . 3 3 6 . . . 7 . . 7 . . . Grunt 43 | . 17 . 8 1 . 3 6 6 . 2 . . . Brawler 2 | . . . 1 1 . . . . . . . . . Sentry 17 | . . . 10 2 . . 4 . . 1 . . . Specialist 2 | . . . . . . . 2 . . . . . . Hunter 3 | . . . . . . . 1 1 . . . . 1 Programmer 5 | . . . . . . . . 2 . 3 . . . Heavy 1 | . . . . . . . 1 . . . . . . Assembled 8 | . . 8 . . . . . . . . . . . Best Kill Streak 7 | . 5 3 4 2 . 3 7 5 . 4 1 1 2 Combat Bots Only 5 | . 5 3 3 2 . 3 5 4 . 3 . . 1 Max Kills in Single Turn 3 | . 3 2 2 1 . 1 2 2 . 3 1 1 1 Gunslinging . | . . . . . . . . . . . . . . Exploded 2 | . 2 2 1 . . . 2 1 . 2 . . . Melee 1 | . . . . . . . . 1 . . . . . Uniques/NPCs Destroyed . | . . . . . . . . . . . . . . Combat | -11 -10 -10 -9 -9 -9 -8 -8 -7 -7 -7 -6 -6 -5 -------- Run | Yrd Mat Min Mat Min Exi Min Mat Fac Was Fac Fac DSF Fac Hostile Shots Fired 633 | . 70 31 155 16 . 38 122 103 . 37 . 15 46 Missed 209 | . 18 10 38 7 . 10 32 53 . 20 . 5 16 Hits 424 | . 52 21 117 9 . 28 90 50 . 17 . 10 30 Melee 2 | . . 1 . . . . . 1 . . . . . Projectile 422 | . 52 20 117 9 . 28 90 49 . 17 . 10 30 AOE 3 | . . . . . . . . 1 . . . . 2 Critical Strikes 13 | . 1 . 1 2 . 2 3 . . 3 . . 1 Actively Blocked 2 | . . . . . . . . . . 1 . . 1 Damage Taken 7098 | . 658 365 1583 140 . 472 1375 631 . 437 . 235 1202 Core 1346 | . 102 75 181 14 . 68 143 221 . 47 . 58 437 Absorbed by Shields . | . . . . . . . . . . . . . . Regen/Repaired (Parts) 100 | . 64 . . . . . . . . 36 . . . Core Remaining (%) 65 | 100 . 29 . . . 34 74 . . 61 . 93 . Volleys Fired 391 | . 55 29 109 8 . 11 90 14 5 48 . . 22 Largest 2 | . 2 2 2 2 . 2 2 1 1 1 . . 1 Hottest 150 | . 120 120 120 74 . 74 150 120 120 120 . . 120 Shots Fired 653 | . 108 55 211 16 . 22 155 14 5 45 . . 22 Gun 65 | . 26 . . . . . 39 . . . . . . Cannon 561 | . 81 52 209 16 . 22 109 13 4 33 . . 22 Launcher 25 | . 1 3 2 . . . 7 . . 12 . . . Special 2 | . . . . . . . . 1 1 . . . . Kinetic 113 | . . . 14 16 . 22 61 . . . . . . Thermal 513 | . 107 52 195 . . . 87 13 4 33 . . 22 Explosive 25 | . 1 3 2 . . . 7 . . 12 . . . Electromagnetic . | . . . . . . . . . . . . . . Robot Hit Streak 23 | . 18 4 10 3 . 6 18 5 10 23 . . 7 Robot Miss Streak 9 | . 3 9 4 2 . 2 3 . . 1 . . 1 Penetration Max . | . . . . . . . . . . . . . . Secondary Targets . | . . . . . . . . . . . . . . Shots Hit Robots 446 | . 76 18 138 10 . 16 107 28 5 21 1 2 24 Core Hits 209 | . 32 18 46 5 . 6 46 20 . 28 1 1 6 Critical Kills 1 | . . . 1 . . . . . . . . . . Critical Parts Destroyed 1 | . . . . . . . . 1 . . . . . Critical Strikes 15 | . 1 . 1 . . 1 2 6 . 1 . . 3 Burn 1 | . 1 . . . . . . . . . . . . Meltdown 1 | . . . 1 . . . . . . . . . . Blast 3 | . . . . . . 1 2 . . . . . . Smash 1 | . . . . . . . . 1 . . . . . Sever 5 | . . . . . . . . 1 . 1 . . 3 Impale 4 | . . . . . . . . 4 . . . . . Melee Attacks 105 | . . . . . . . . 59 . 28 1 2 15 Impact 4 | . . . . . . . . 4 . . . . . Slashing 70 | . . . . . . . . 24 . 28 1 2 15 Piercing 31 | . . . . . . . . 31 . . . . . Sneak Attacks 21 | . . . . . . . . 14 . 4 1 1 1 Combat Hostiles . | . . . . . . . . . . . . . . Follow-up Attacks . | . . . . . . . . . . . . . . Damage Inflicted 14099 | . 1537 516 2826 296 . 394 2684 2110 124 2340 62 119 1091 Guns 892 | . 277 . . . . . 615 . . . . . . Cannons 8541 | . 1015 315 2591 253 . 385 1758 359 124 1024 . . 717 Explosions 1595 | . 220 171 42 . . . 191 130 . 841 . . . Melee 2651 | . . . . . . . . 1621 . 475 62 119 374 Ramming 420 | . 25 30 193 43 . 9 120 . . . . . . Kinetic 1901 | . . . 206 253 . 385 1057 . . . . . . Thermal 7903 | . 1292 315 2385 . . . 1316 489 124 1265 . . 717 Explosive 1224 | . 220 171 42 . . . 191 . . 600 . . . Electromagnetic . | . . . . . . . . . . . . . . Impact 257 | . . . . . . . . 257 . . . . . Slashing 1384 | . . . . . . . . 354 . 475 62 119 374 Piercing 1010 | . . . . . . . . 1010 . . . . . Highest Corruption 27 | . . . . . . . . 10 25 27 . . . Average Corruption 21 | . . . . . . . . 9 17 23 . . . Corruption Purged 15 | . . . . . . . . . . 15 . . . Corruption Blocked . | . . . . . . . . . . . . . . Effects 111 | . . . . . . . . 10 6 95 . . . Message Errors 25 | . . . . . . . . 2 1 22 . . . Matter Fused 21 | . . . . . . . . 2 . 19 . . . Heat Flow Errors 14 | . . . . . . . . 1 2 11 . . . Energy Discharges 10 | . . . . . . . . 2 . 8 . . . Parts Rejected 1 | . . . . . . . . . 1 . . . . Parts Fused 2 | . . . . . . . . 2 . . . . . Data Loss (minor) 12 | . . . . . . . . 1 . 11 . . . Data Loss (major) 5 | . . . . . . . . . . 5 . . . Misfires 1 | . . . . . . . . . . 1 . . . Alerts 3 | . . . . . . . . . . 3 . . . Misdirections 14 | . . . . . . . . . 2 12 . . . Weapon Failures 3 | . . . . . . . . . . 3 . . . Overload Shots . | . . . . . . . . . . . . . . Overflow Damage 811 | . 19 4 8 19 . 18 5 426 . 267 . . 45 Projectiles 207 | . . . 4 19 . 18 5 . . 121 . . 40 Explosions 93 | . 19 4 . . . . . . . 70 . . . Melee 511 | . . . 4 . . . . 426 . 76 . . 5 Knockbacks 10 | . 1 . 3 1 . 1 4 . . . . . . Impact 5 | . 1 . 3 1 . . . . . . . . . Kinetic 5 | . . . . . . 1 4 . . . . . . Secondary . | . . . . . . . . . . . . . . Self-Inflicted Damage 116 | . 18 85 . . . . . . . 13 . . . Shots 5 | . 1 3 . . . . . . . 1 . . . Rammed 38 | . 3 3 16 3 . 1 12 . . . . . . Targets Rammed 51 | . 9 3 21 3 . 1 14 . . . . . . Kicked 6 | . 6 . . . . . . . . . . . . Crushed 7 | . . . 5 . . . 2 . . . . . . Highest Temperature 371 | . 180 180 240 9 . 56 6 323 304 371 . . 193 Average Temperature 79 | . 63 86 61 5 . 13 4 104 136 87 . . 72 Received Heat Transfer 1881 | . 291 60 600 72 . 288 423 147 . . . . . Effects 2 | . . . . . . . . . . 2 . . . Shutdowns 1 | . . . . . . . . . . 1 . . . Energy Bleed 1 | . . . . . . . . . . 1 . . . Siege Activations . | . . . . . . . . . . . . . . Martial Activations . | . . . . . . . . . . . . . . Shielding Activations . | . . . . . . . . . . . . . . Robots Disrupted . | . . . . . . . . . . . . . . Combat Hostiles . | . . . . . . . . . . . . . . Robots Corrupted 1 | . . . . . . . . 1 . . . . . Combat Hostiles . | . . . . . . . . . . . . . . Parts Fried 2 | . . . 1 . . . . 1 . . . . . Impact Corruptions 6 | . . . 3 . . . . 3 . . . . . Robots Melted 5 | . . . 4 . . . 1 . . . . . . Combat Hostiles 5 | . . . 4 . . . 1 . . . . . . Parts Melted 30 | . 4 . 17 . . . 4 . . 5 . . . Heat Transferred 15658 | . 2960 666 4958 . . . 2405 900 320 2230 . . 1219 Parts Sabotaged . | . . . . . . . . . . . . . . Parts Stolen . | . . . . . . . . . . . . . . Parts Stripped . | . . . . . . . . . . . . . . Power Chain Reactions . | . . . . . . . . . . . . . . Alert | -11 -10 -10 -9 -9 -9 -8 -8 -7 -7 -7 -6 -6 -5 ------- Run | Yrd Mat Min Mat Min Exi Min Mat Fac Was Fac Fac DSF Fac Maximum Alert Level 2 | . 1 . 1 . . . . 2 1 2 1 . . Low Security (%) 87 | . 72 100 89 100 . 100 100 82 83 69 . 100 100 Level 1 7 | . 27 . 10 . . . . 3 16 3 100 . . Level 2 4 | . . . . . . . . 14 . 26 . . . Level 3 . | . . . . . . . . . . . . . . Level 4 . | . . . . . . . . . . . . . . Level 5 . | . . . . . . . . . . . . . . High Security . | . . . . . . . . . . . . . . Max Security . | . . . . . . . . . . . . . . Peak Influence 626 | . 292 175 234 98 . 51 164 626 205 559 259 181 95 Initial 259 | . . 109 . 87 . . . 53 205 59 259 156 89 Average 108 | . 123 28 121 16 . 3 97 173 143 179 233 167 48 Influence Increases 5192 | . 801 96 976 98 . 78 773 1124 . 1038 34 35 139 Destroy 0b10 Robot/C 2180 | . 400 60 520 80 . 60 420 300 . 320 . . 20 Destroy 0b10 Robot/NC 360 | . 25 10 85 5 . 5 60 75 . 65 5 5 20 Destroy Leader 620 | . 96 10 174 10 . 10 122 90 . 90 . . 18 Allied During Kill 78 | . . . 5 . . . . 39 . 34 . . . Successful Hack 251 | . 40 . 23 . . . 16 42 . 58 14 . 58 Select Force Hacks 150 | . 60 . 30 . . . 30 . . 30 . . . Disable Machine 420 | . 60 . 15 . . . 30 180 . 135 . . . Destroy Structure 353 | . 15 16 64 3 . 3 80 53 . 111 . . 8 Partial Spotted 60 | . . . . . . . . 15 . 30 15 . . Lose Combat Pursuer 720 | . 105 . 60 . . . 15 330 . 165 . 30 15 Influence Decreases 5192 | . 521 376 750 324 . 78 654 657 501 594 340 87 310 Entered New Map 1202 | . . 171 . 139 . . . 66 381 26 270 67 82 Time Decay 3417 | . 491 205 620 175 . 68 574 491 60 488 70 . 175 Lost Part 343 | . 20 . 110 10 . 10 80 20 . 20 . 20 53 Lost Ally 230 | . 10 . 20 . . . . 80 60 60 . . . Squads Dispatched 45 | . 6 . 3 . . . 5 10 . 18 1 . 2 Investigation 18 | . 5 . 2 . . . 1 3 . 6 . . 1 Extermination 12 | . . . . . . . . 5 . 6 1 . . Reinforcement 15 | . 1 . 1 . . . 4 2 . 6 . . 1 Assault . | . . . . . . . . . . . . . . Garrison . | . . . . . . . . . . . . . . Intercept . | . . . . . . . . . . . . . . Searches Triggered . | . . . . . . . . . . . . . . Construction Impeded 2 | . . . . . . . 1 . . 1 . . . Haulers Reinforced 2 | . . . . . . . . . . 2 . . . Active Scanning Responses . | . . . . . . . . . . . . . . Cargo Convoy Interrupts . | . . . . . . . . . . . . . . Stealth | -11 -10 -10 -9 -9 -9 -8 -8 -7 -7 -7 -6 -6 -5 --------- Run | Yrd Mat Min Mat Min Exi Min Mat Fac Was Fac Fac DSF Fac Distress Signals 14 | . 1 . 6 . . . 2 3 . 1 . . 1 Communications Jammed . | . . . . . . . . . . . . . . Distress Signals . | . . . . . . . . . . . . . . Times Spotted 234 | . 37 11 50 4 . 3 37 38 6 39 . 4 5 Peak Tracking Total 13 | . 4 3 5 2 . 3 4 13 6 6 . 3 3 Tactical Retreats 28 | . 5 . 3 . . . 1 10 . 6 . 2 1 Traps | -11 -10 -10 -9 -9 -9 -8 -8 -7 -7 -7 -6 -6 -5 ------- Run | Yrd Mat Min Mat Min Exi Min Mat Fac Was Fac Fac DSF Fac Traps Triggered 12 | . 2 . . . . . . 4 . 4 . 1 1 Indirectly . | . . . . . . . . . . . . . . Trap Hack Attempts . | . . . . . . . . . . . . . . Triggered . | . . . . . . . . . . . . . . Disarmed . | . . . . . . . . . . . . . . Reprogrammed . | . . . . . . . . . . . . . . Reused . | . . . . . . . . . . . . . . Traps Extracted . | . . . . . . . . . . . . . . Installed . | . . . . . . . . . . . . . . Triggered . | . . . . . . . . . . . . . . Machines | -11 -10 -10 -9 -9 -9 -8 -8 -7 -7 -7 -6 -6 -5 ---------- Run | Yrd Mat Min Mat Min Exi Min Mat Fac Was Fac Fac DSF Fac Machines Disabled 28 | . 4 . 1 . . . 2 12 . 9 . . . Max in Single Turn 6 | . 2 . 1 . . . 1 6 . 5 . . . Garrison Access 1 | . . . . . . . 1 . . . . . . Machines Repaired . | . . . . . . . . . . . . . . Machines Dismantled . | . . . . . . . . . . . . . . Machines Sabotaged . | . . . . . . . . . . . . . . Overloaded Fab Kills . | . . . . . . . . . . . . . . Hacking | -11 -10 -10 -9 -9 -9 -8 -8 -7 -7 -7 -6 -6 -5 --------- Run | Yrd Mat Min Mat Min Exi Min Mat Fac Was Fac Fac DSF Fac Machines Accessed 75 | . 9 1 9 . 2 . 10 15 . 22 3 . 4 Terminals 32 | . 6 . 7 . . . 4 6 . 7 2 . . Fabricators 11 | . . . . . . . . 5 . 5 . . 1 Repair Stations 10 | . 1 . . . . . 1 3 . 4 . . 1 Recycling Units 9 | . 2 . 1 . . . 2 1 . 2 . . 1 Scanalyzers 7 | . . . 1 . . . 2 . . 3 . . 1 Garrison Access 3 | . . . . . . . 1 . . 1 1 . . Total Hacks 259 | . 37 1 21 . 24 . 36 41 . 77 8 . 14 Successful 152 | . 24 1 10 . 24 . 17 22 . 42 2 . 10 Failed 105 | . 13 . 11 . . . 18 19 . 34 6 . 4 Catastrophic 8 | . 1 . . . . . 1 1 . 4 1 . . Database Lockouts 2 | . . . . . . . 1 . . 1 . . . Manual 60 | . 20 . 5 . 1 . 3 13 . 18 . . . Terminals 99 | . 28 . 15 . . . 13 18 . 20 5 . . Fabricators 37 | . . . . . . . . 17 . 16 . . 4 Repair Stations 25 | . 4 . . . . . 2 5 . 13 . . 1 Recycling Units 19 | . 5 . 2 . . . 6 1 . 4 . . 1 Scanalyzers 45 | . . . 4 . . . 11 . . 22 . . 8 Garrison Access 9 | . . . . . . . 4 . . 2 3 . . Terminal Hacks 63 | . 16 1 7 . 24 . 3 5 . 5 2 . . Record 23 | . . . . . 23 . . . . . . . . Robot Schematic 3 | . . . . . . . . 2 . 1 . . . Robot Analysis 8 | . 6 . . . . . . 2 . . . . . Prototype ID Bank 4 | . 4 . . . . . . . . . . . . Open Door 1 | . . 1 . . . . . . . . . . . Open DSF 1 | . . . . . . . . . . . 1 . . Branch Access Points 3 | . . . 1 . . . 1 . . . 1 . . Alert Level 4 | . 1 . . . . . 1 1 . 1 . . . Locate Traps 3 | . 1 . 1 . . . . . . 1 . . . Dispatch Records 1 | . . . 1 . . . . . . . . . . Transport Status 1 | . . . 1 . . . . . . . . . . Recall Reinforcements 2 | . . . 1 . . . . . . 1 . . . Hauler Manifests 4 | . 1 . 2 . . . 1 . . . . . . Registered Components 1 | . 1 . . . . . . . . . . . . Zone Layout 3 | . 2 . . . . . . . . 1 . . . Proto ID Catalog 1 | . . . . . 1 . . . . . . . . Fabricator Hacks 14 | . . . . . . . . 8 . 5 . . 1 Network Status 2 | . . . . . . . . 1 . 1 . . . Load Schematic 7 | . . . . . . . . 4 . 3 . . . Build 5 | . . . . . . . . 3 . 1 . . 1 Repair Station Hacks 15 | . 4 . . . . . 2 1 . 7 . . 1 Scan Component 9 | . 2 . . . . . 1 1 . 5 . . . Repair 5 | . 2 . . . . . 1 . . 2 . . . Refit 1 | . . . . . . . . . . . . . 1 Recycling Unit Hacks 6 | . 1 . . . . . 2 1 . 1 . . 1 Retrieve Components 6 | . 1 . . . . . 2 1 . 1 . . 1 Scanalyzer 32 | . . . 2 . . . 8 . . 15 . . 7 Insert Component 13 | . . . 1 . . . 3 . . 6 . . 3 Analyze 13 | . . . 1 . . . 4 . . 6 . . 2 Retrieve Study 6 | . . . . . . . 1 . . 3 . . 2 Garrison Access Hacks 1 | . . . . . . . 1 . . . . . . Seal Access 1 | . . . . . . . 1 . . . . . . Unauthorized Hacks 21 | . 3 . 1 . . . 1 7 . 9 . . . Terminals 8 | . 1 . . . . . . 3 . 4 . . . Assimilate 4 | . 1 . . . . . . 3 . . . . . Botnet 2 | . . . . . . . . . . 2 . . . Skim 2 | . . . . . . . . . . 2 . . . Fabricators 6 | . . . . . . . . 4 . 2 . . . Liberate 3 | . . . . . . . . 2 . 1 . . . Recompile 3 | . . . . . . . . 2 . 1 . . . Repair Stations . | . . . . . . . . . . . . . . Recycling Units 5 | . 2 . . . . . 1 . . 2 . . . Recyclers 1 | . . . . . . . . . . 1 . . . Mask 1 | . . . . . . . . . . 1 . . . Tunnel 3 | . 2 . . . . . 1 . . . . . . Scanalyzers 2 | . . . 1 . . . . . . 1 . . . Extract 2 | . . . 1 . . . . . . 1 . . . Garrison Access . | . . . . . . . . . . . . . . Data Cores Recovered 1 | . . . . . . . . . . 1 . . . Used 1 | . . . . . . . . . . 1 . . . Hacking Detections 58 | . 9 . 7 . . . 5 13 . 18 3 . 3 Full Trace Events 8 | . 2 . . . . . . 1 . 4 . . 1 Feedback Events 1 | . . . . . . . . . . 1 . . . Corruption 1 | . . . . . . . . . . 1 . . . Feedback Blocked . | . . . . . . . . . . . . . . Robot Schematics Acquired 3 | . . . . . . . . 2 . 1 . . . Robots Built 7 | . . . . . . . . 5 . 2 . . . Authchips 3 | . . . . . . . . 2 . 1 . . . Time 361 | . . . . . . . . 294 . 67 . . . Total Robot Build Rating 27 | . . . . . . . . 19 . 8 . . . Part Schematics Acquired 17 | . . . 3 . . . 2 . . 10 . . 2 Parts Built 2 | . . . . . . . . . . . . . 2 Authchips . | . . . . . . . . . . . . . . Time 69 | . . . . . . . . . . . . . 69 Total Part Build Rating 18 | . . . . . . . . . . . . . 18 Part Studies Acquired 6 | . . . . . . . 1 . . 3 . . 2 Parts Repaired 5 | . 2 . . . . . 1 . . 2 . . . Time 198 | . 52 . . . . . 64 . . 82 . . . Parts Recycled . | . . . . . . . . . . . . . . Recycled Matter . | . . . . . . . . . . . . . . Retrieved Matter . | . . . . . . . . . . . . . . Retrieved Components 23 | . . . . . . . 19 1 . . . . 3 Parts Scanalyzed 12 | . . . 1 . . . 2 . . 6 . . 3 Part Schematics Acquired 10 | . . . 1 . . . 2 . . 5 . . 2 Parts Damaged 1 | . . . . . . . 1 . . . . . . Bothacking | -11 -10 -10 -9 -9 -9 -8 -8 -7 -7 -7 -6 -6 -5 ------------ Run | Yrd Mat Min Mat Min Exi Min Mat Fac Was Fac Fac DSF Fac Used RIF Installer . | . . . . . . . . . . . . . . Robots Hacked 1 | . . . . . . . . 1 . . . . . Non-combat 1 | . . . . . . . . 1 . . . . . Combat . | . . . . . . . . . . . . . . Robot Hacks Applied 1 | . . . . . . . . 1 . . . . . find_chute 1 | . . . . . . . . 1 . . . . . Relay Couplers Released . | . . . . . . . . . . . . . . Fabnet Peak Effective % . | . . . . . . . . . . . . . . Robots Rewired . | . . . . . . . . . . . . . . Allies Hacked 1 | . . . . . . . . . . 1 . . . Hacks Repelled . | . . . . . . . . . . . . . . Allies | -11 -10 -10 -9 -9 -9 -8 -8 -7 -7 -7 -6 -6 -5 -------- Run | Yrd Mat Min Mat Min Exi Min Mat Fac Was Fac Fac DSF Fac Total Allies 17 | . 1 . 1 . . . . 10 . 5 . . . Largest Group 4 | . 1 . 1 . . . . 3 2 4 . . . Highest-Rated Group 138 | . 10 . 16 . . . . 111 74 138 . . . Highest-Rated Ally 37 | . 10 . 16 . . . . 37 37 37 . . . Total Orders . | . . . . . . . . . . . . . . Ally Attacks 89 | . . . 10 . . . 6 40 13 20 . . . Total Damage 1624 | . . . 73 . . . 16 710 17 808 . . . Kills 17 | . . . 1 . . . . 7 . 9 . . . Allies Corrupted . | . . . . . . . . . . . . . . Allies Melted . | . . . . . . . . . . . . . . Intel | -11 -10 -10 -9 -9 -9 -8 -8 -7 -7 -7 -6 -6 -5 ------- Run | Yrd Mat Min Mat Min Exi Min Mat Fac Was Fac Fac DSF Fac Active Infowar (turns) 3546 | . . . . . . . . 1126 121 1684 154 94 367 Sensors 3539 | . . . . . . . . 1125 121 1678 154 94 367 IFF 1 | . . . . . . . . . . . . . 1 Terrain 1293 | . . . . . . . . . . 955 147 94 97 Cloaking 5 | . . . . . . . . 2 . . . 3 . Robot Analysis Total 8 | . 6 . . . . . . 2 . . . . . Derelict Logs Recovered 3 | . . 1 . 2 . . . . . . . . . Drone Launches 11 | . . . 5 . . . 6 . . . . . . Drone Recoveries 11 | . . . 5 . . . 6 . . . . . . Exploration | -11 -10 -10 -9 -9 -9 -8 -8 -7 -7 -7 -6 -6 -5 ------------- Run | Yrd Mat Min Mat Min Exi Min Mat Fac Was Fac Fac DSF Fac Turns Passed 15309 | . 1950 1291 3176 1002 391 879 2510 1555 121 1819 154 94 367 Spaces Moved 12742 | 1 770 621 1705 606 242 519 1228 2696 187 3188 422 126 431 Core 2 | . . . . . . . . 2 . . . . . Treads 4715 | . 453 247 1409 606 242 519 1228 11 . . . . . Legs 318 | 1 317 . . . . . . . . . . . . Wheels 670 | . . 374 296 . . . . . . . . . . Hover . | . . . . . . . . . . . . . . Flight 7037 | . . . . . . . . 2683 187 3188 422 126 431 Fastest Speed 24 | 120 120 155 110 160 160 160 155 26 26 26 24 24 29 Average Speed 90 | 120 212 188 154 160 160 160 160 27 26 26 24 39 38 Slowest Speed 320 | 120 240 320 320 160 160 160 237 155 26 99 24 98 100 Overloaded Moves . | . . . . . . . . . . . . . . Propulsion Burnouts . | . . . . . . . . . . . . . . Robots Hopped 49 | . . . . . . . . 19 . 28 . 1 1 Potential Cave-ins . | . . . . . . . . . . . . . . Cave-ins Triggered . | . . . . . . . . . . . . . . Exploration Rate (%) 66 | 2 92 96 98 99 59 98 71 57 85 65 10 90 8 Regions Visited 13 Branch Regions 4 Pre-discovered Areas 5 | . 2 . . 1 1 . 1 . . . . . . Known Exits Taken 3 | . . . 1 . . . . . . 1 1 . . Unknown Exits Taken 7 | 1 1 1 . 1 1 1 1 . . . . . . Scrap Searched 6 | . . 2 . 1 . 3 . . . . . . . Spaces Dug 32 | . . . . . . . . 12 . 17 . . 3 Terrain Destroyed 404 | . 10 22 66 3 . 4 90 51 . 154 . . 4 Melee 28 | . . . . . . . . 12 . 13 . . 3 Projectile 37 | . . . 3 3 . 4 20 . . 6 . . 1 AOE 339 | . 10 22 63 . . . 70 39 . 135 . . . Terrain Rammed . | . . . . . . . . . . . . . . Walls Destroyed . | . . . . . . . . . . . . . . Machines Disabled . | . . . . . . . . . . . . . . Actions | -11 -10 -10 -9 -9 -9 -8 -8 -7 -7 -7 -6 -6 -5 --------- Run | Yrd Mat Min Mat Min Exi Min Mat Fac Was Fac Fac DSF Fac Total 15579 | . 967 679 2027 621 248 546 1601 3383 253 4032 468 167 587 Wait 1883 | . 98 5 118 . . 6 205 556 61 717 35 4 78 Move 12639 | . 769 620 1704 605 241 518 1227 2662 186 3133 421 124 429 Hop 42 | . . . . . . . . 15 . 26 . . 1 Pick Up 90 | . 14 7 18 1 3 2 13 4 . 15 2 6 5 Fast Attach 33 | . 2 1 4 1 . 1 2 11 1 7 . 1 2 Attach 45 | . 2 . 10 . . 1 6 12 . 4 2 2 6 Detach 8 | . . . 1 . . . 1 2 . 1 . . 3 Swap 130 | . 12 9 21 1 . 3 29 22 . 15 7 5 6 Drop 102 | . 6 5 21 2 4 3 14 26 . 8 . 8 5 Fire 391 | . 55 29 109 8 . 11 90 14 5 48 . . 22 Melee 105 | . . . . . . . . 59 . 28 1 2 15 Ram 1 | . . 1 . . . . . . . . . . . Kick 6 | . 6 . . . . . . . . . . . . Crush 44 | . 3 2 21 3 . 1 14 . . . . . . Escape Stasis 60 | . . . . . . . . . . 30 . 15 15 Rewire . | . . . . . . . . . . . . . . Trap . | . . . . . . . . . . . . . . Miscellaneous . | . . . . . . . . . . . . . . Route ------- -11/Scrapyard -10/Materials (discovered 4 exits: *Mat x2 / *Min x2) -10/Mines (discovered 2 exits: *Mat x2) -9/Materials (discovered 4 exits: *Mat x3 / *Min) -9/Mines (discovered 3 exits: *Mat x2 / *Exi) -9/Exiles -8/Mines (discovered 2 exits: *Mat x2) -8/Materials (discovered 3 exits: *Fac x3) -7/Factory (discovered 2 exits: *Fac / *Low) -7/Waste -7/Factory (discovered 3 exits: *Fac / *Low x2) -6/Factory (discovered 4 exits: *Fac / Low x2 / DSF) -6/DSF -5/Factory History --------- Turn | Location | Event 1 | -11/Scrapyard | Discovered new exit (range 0) 1 | -11/Scrapyard | Entered Materials 251 | -10/Materials | Discovered new exit (range 6) 312 | -10/Materials | Build established: Mutant 718 | -10/Materials | Discovered new exit (range 5) 955 | -10/Materials | Discovered new exit (range 9) 1068 | -10/Materials | Discovered new exit (range 10) 1663 | -10/Materials | Repaired Lgt. Ion Engine 1689 | -10/Materials | Repaired Lgt. Treads 1951 | -10/Materials | Entered Mines 1992 | -10/Mines | Core integrity fell below 50% 2033 | -10/Mines | Assembled infested the area 2435 | -10/Mines | Discovered new exit (range 4) 2571 | -10/Mines | Discovered new exit (range 12) 2806 | -10/Mines | Found the Drone Emporium 2819 | -10/Mines | Found Prototype Device 2819 | -10/Mines | Identified Splice Drone Bay 2881 | -10/Mines | Build established: Scavenger-Mutant 2907 | -10/Mines | Learned Materials trap positions 3242 | -10/Mines | Entered Materials 3242 | -9/Materials | Evolved 2 slots: Propulsion x1, Utility x1 3243 | -9/Materials | Loaded intel: 26 trap records 3268 | -9/Materials | Identified exit to Mines 3697 | -9/Materials | Discovered new exit (range 7) 4022 | -9/Materials | Discovered new exit (range 4) 4521 | -9/Materials | Lost 3 parts (1p1u1w) 4917 | -9/Materials | Build established: Mutant 5833 | -9/Materials | Discovered new exit (range 16) 6418 | -9/Materials | Entered Mines 6425 | -9/Mines | Met a Derelict bent on vengeance 6522 | -9/Mines | Learned Materials trap positions 6576 | -9/Mines | Discovered new exit (range 6) 6674 | -9/Mines | Deemed a non-threat by the Exiles lab entrance 6675 | -9/Mines | Discovered new exit (range 5) 6775 | -9/Mines | Found a hidden stash of uninstalled traps 6880 | -9/Mines | Discovered new exit (range 8) 7178 | -9/Mines | Learned location of Zion (-7) 7420 | -9/Mines | Entered Exiles 7460 | -9/Exiles | Met 8R-AWN 7488 | -9/Exiles | Met EX-HEX 7531 | -9/Exiles | Met EX-BIN 7548 | -9/Exiles | Aligned with FarCom system 7550 | -9/Exiles | Given EX-Vault access code 7588 | -9/Exiles | Opened EX-Vault 7601 | -9/Exiles | Found Gui. Plasma Cannon 7627 | -9/Exiles | Found Cloak of Protection 7645 | -9/Exiles | Found YOLO Cannon 7678 | -9/Exiles | Warned to stay clear of 0b10 Research branches 7795 | -9/Exiles | Discovered new exit (range 12) 7811 | -9/Exiles | Stole three prototypes: Cloak of Protection, Gui. Plasma Cannon, YOLO Cannon 7811 | -9/Exiles | Entered Mines 7813 | -8/Mines | Core integrity fell below 50% 8431 | -8/Mines | Discovered new exit (range 5) 8587 | -8/Mines | Discovered new exit (range 10) 8690 | -8/Mines | Entered Materials 8690 | -8/Materials | Evolved 2 slots: Utility x2 8691 | -8/Materials | Loaded intel: 16 trap records 8745 | -8/Materials | Central database locked down 9653 | -8/Materials | Met 7R-MNS 9661 | -8/Materials | Discovered new exit (range 16) 10102 | -8/Materials | Lost 3 parts (1p2w) 10335 | -8/Materials | Discovered new exit (range 5) 10448 | -8/Materials | Repaired Broken Imp. Flight Unit 11106 | -8/Materials | Discovered new exit (range 11) 11147 | -8/Materials | Lost 3 parts (1n1u1w) 11200 | -8/Materials | Entered Factory 11200 | -7/Factory | Evolved 2 slots: Propulsion x1, Utility x1 11201 | -7/Factory | Caught up to 7R-MNS 11202 | -7/Factory | FarCom data flow suspended 11270 | -7/Factory | Discovered new exit (range 11) 11280 | -7/Factory | Identified exit to Lower Caves 11512 | -7/Factory | Discovered new exit (range 15) 11551 | -7/Factory | Build established: Sprinter 12232 | -7/Factory | Fabricated M-28 Smith? 12376 | -7/Factory | Fabricated P-60 Hacker (x2) 12507 | -7/Factory | Identified exit to Factory 12526 | -7/Factory | System corruption reached 10% 12676 | -7/Factory | Build established: Hacker-Sprinter 12747 | -7/Factory | Fabricated P-60 Hacker (x2) 12755 | -7/Factory | Manually triggered Chute Trap 12755 | -7/Factory | Sucked down chute 12755 | -7/Factory | Entered Waste 12770 | -7/Waste | EMP discharged 12776 | -7/Waste | Spotted C-40 Crusher 12776 | -7/Waste | Spotted C-40 Crusher 12781 | -7/Waste | Spotted C-40 Crusher 12786 | -7/Waste | Spotted C-40 Crusher 12787 | -7/Waste | Spotted C-40 Crusher 12805 | -7/Waste | 3 allies followed down the chute 12847 | -7/Waste | Spotted C-40 Crusher 12870 | -7/Waste | EMP discharged 12874 | -7/Waste | Discovered new exit (range 10) 12876 | -7/Waste | Identified exit to Factory 12876 | -7/Waste | Entered Factory 12988 | -7/Factory | Discovered exit to Lower Caves (range 12) 13217 | -7/Factory | Discovered exit to Lower Caves (range 16) 13507 | -7/Factory | Build established: Scout 13807 | -7/Factory | Gui. Plasma Cannon suddenly broke down 13994 | -7/Factory | Central database locked down 14100 | -7/Factory | Fabricated P-60 Hacker (x2) 14148 | -7/Factory | Hacker 4h assimilated hostile S-27 Virus 14215 | -7/Factory | Lost 3 allies 14543 | -7/Factory | Repaired Broken VTOL Module+ 14579 | -7/Factory | Build established: Sprinter 14582 | -7/Factory | Repaired Imp. Sensor Array 14690 | -7/Factory | Discovered exit to Factory (range 15) 14695 | -7/Factory | Entered another Factory area 14695 | -6/Factory | Evolved 2 slots: Propulsion x1, Utility x1 14706 | -6/Factory | Discovered new exit (range 9) 14708 | -6/Factory | Identified exit to Factory 14811 | -6/Factory | Identified exit to Lower Caves 14844 | -6/Factory | Identified exit to DSF 14849 | -6/Factory | Entered DSF 14883 | -6/DSF | Additional patrols routed to DSF 14901 | -6/DSF | Discovered exit to Factory (range 12) 14943 | -6/DSF | Entered Factory 14943 | -5/Factory | Evolved 2 slots: Propulsion x1, Utility x1 15048 | -5/Factory | Fabricated Enh. Nova Cannon? 15310 | -5/Factory | Self-destructed Last Messages --------------- 15284_ System Shield destroyed. 15284_ Acquired Enh. Nova Cannon. 15286_ Acquired 1 matter. 15288_ Knocked back. 15288_ R-10 Processor collects Imp. Hover Unit. 15288_ Acquired 1 matter. 15294_ H-71 Marshal calls for reinforcements. 15294_ ALERT: Hostile activity reported, dispatching reinforcements to area. 15294_ Adv. Terrain Scan Processor destroyed. 15294_ Knocked back. 15297_ R-10 Processor collects Authchip [R/Combat]. 15301_ R-10 Processor collects Imp. Cooling System. 15305_ R-10 Processor collects Mni. Grenade Launcher+. 15310_ Penetrated by Slug. 15310_ Enh. Nova Cannon destroyed. 15310_ Backup Power VII destroyed. 15310_ Imp. Sensor Array destroyed. 15310_ Adv. Weight Redist. System destroyed. 15310_ Scythe+ destroyed. Map ----- +----------------------------------------------------+ | ?# #??#?????###????? ?????????????????? | | ?# ] !% #????#?????#?##?##?????????????????? | | ?# #?#????????????????????????????????? | | ?# #???#????????#???#?????????????????? | | ?# #??????#???????????????????????????? | | ?# #?#??#?????????????????????????????? | | ?# ############?????#?????????????????? | | ?# # #?#?#??????????????????? | | ?# ] # #??????????????????????? | | ?# # #??????????????????????? | | ?# # #??????????????????????? | | ########+###### #??????????????????????? | | # #?# #??????????????????????? | | # #?# #??????????????????????? | | !! # #?# #??????????????????????? | | # #?# ! #??????????????????????? | | # #?# #??????????????????????? | | # #?# #??????????????????????? | | + #?# #??????????????????????? | | # #?# #??????????????????????? | | # ######+#################+##??????????? | | # % ????????? | | ! # % ????????? | | ##### ] %% ????????? | | # %* H????????? | | + % R% @! ????????? | | # ????????? | | # % ????????? | | " # % ###############+###?????????? | | " # #???????????????????????????? | | " # #???????????????????????????? | | # #???????????????????????????? | | # T???????????????????????????? | | # ???????????????????????????? | | # #???????????????????????????? | | # #???????????????????????????? | | ##### #???????????????????????????? | | ????#####+######### ##???????????????????????????? | | ??????????????????# ?????????????????????????????? | | ??????????????????# ?????????????????????????????? | | ??????????????????? ?????????????????????????????? | | ?????????????????????????????????????????????????? | | ?????????????????????????????????????????????????? | | ?????????????????????????????????????????????????? | | ?????????????????????????????????????????????????? | | ?????????????????????????????????????????????????? | | ?????????????????????????????????????????????????? | | ?????????????????????????????????????????????????? | | ?????????????????????????????????????????????????? | | ?????????????????????????????????????????????????? | +----------------------------------------------------+ Best States ------------- Heat Dissipation 83 Energy Generation 18 Energy Capacity 280 Matter Stores 300 Matter Capacity 300 Sight Range 16 Robot Scan Range 15 Terrain Scan Range 16 Terrain Scan Density 210 Additional Mass Support 9 Armor Coverage 150 Evasion (%) 65 Targeting Accuracy 6 Melee Accuracy 8 Armor Integrity Analysis 30 Recoil Reduction 3 Salvage Targeting 2 Offensive Hacking 20 Defensive Hacking 10 Authchip Count 3 Item Schematics ----------------- VTOL Module | -9/Materials | Scanalyzed Sml. Battery | -9/Materials | Extracted EM Shotgun | -9/Materials | Extracted Imp. Flight Unit | -8/Materials | Scanalyzed Imp. VTOL Module | -8/Materials | Scanalyzed Hacking Suite | -7/Factory | Scanalyzed Imp. Heat Sink | -7/Factory | Scanalyzed Mni. Grenade Launcher | -7/Factory | Scanalyzed Imp. Terrain Scanner | -7/Factory | Scanalyzed Remote Datajack | -7/Factory | Scanalyzed Lyr. Light Armor Plating | -7/Factory | Extracted Matter Filter | -7/Factory | Extracted Kinecellerator | -7/Factory | Extracted Proton Missile Launcher | -7/Factory | Extracted Huge Storage Unit | -7/Factory | Extracted Enh. Nova Cannon | -5/Factory | Scanalyzed Imp. Cooling System | -5/Factory | Scanalyzed Robot Schematics ------------------ P-60 Hacker | -7/Factory | Hacked Y-45 Defender | -7/Factory | Hacked Y-54 Guardian | -7/Factory | Hacked Fabricated ------------ M-28 Smith | x1 | -7/Factory | Preloaded P-60 Hacker | x2 | -7/Factory | Authchip P-60 Hacker | x2 | -7/Factory | Authchip P-60 Hacker | x2 | -7/Factory | Authchip Enh. Nova Cannon | x2 | -5/Factory | Preloaded Repaired ---------- Lgt. Ion Engine | 32% | -10/Materials Lgt. Treads | 73% | -10/Materials Imp. Flight Unit | 99% | -8/Materials | Broken VTOL Module | 20% | -7/Factory | Broken Imp. Sensor Array | 27% | -7/Factory Studied --------- Assault Cannon | -8/Materials | Hacked VTOL Module | -7/Factory | Hacked Mic. Nuclear Core | -7/Factory | Hacked Mni. Grenade Launcher | -7/Factory | Hacked Lgt. Fission Core | -5/Factory | Hacked Scythe | -5/Factory | Hacked Alien Tech Used ----------------- None Achievements -------------- None Challenges ------------ None Game ------ Seed GreatFlightBay Manual? 0 Play Time 02:16:48 Cumulative 216.1 hours Start 2025.12.21 @ 10:52:15 End 2025.12.21 @ 20:48:28 Sessions 5 Manual Loads 0 Difficulty Rogue Special Mode None Game No. 295 Rogue 294 Adventurer 1 Explorer 0 Win Type - Total 2 Types 1/0/0/1/0/0/0/0/0/0 Lore% 66 Gallery% 62 Achievement% 55 Wizard Run 0 Options --------- Layout 0 ASCII 0 Keyboard 0 Movement Numpad Keybinds 0 Fullscreen 1 Font 24/Smallcaps Map View 76x50 Zoom Use 0% Tactical HUD 1 Map Filters NONE Filters NONE Steam 1 RUN: 0244586d-1daf-4d20-9a83-713987f5202d